[Event "TUR-ch U13-18 Open 2023"]
[Site "Antalya"]
[Date "2023.01.22"]
[Round "1"]
[White "Durucay, Uygar"]
[Black "Altinkaya, Sami"]
[Result "1-0"]
[ECO "D10"]
[WhiteElo "1926"]
[BlackElo "1208"]
[Annotator "TA"]
[PlyCount "127"]
[EventDate "2023.01.17"]
[EventType "swiss"]
[EventCountry "TUR"]
[SourceTitle "playchess.com"]
[Source "ChessBase"]
[SourceQuality "1"]
[TimeControl "5400+30"]

{[%evp 9,127,28,28,34,37,20,26,18,60,60,61,53,86,86,74,65,84,68,103,72,69,27,70,68,163,161,137,119,145,147,140,136,192,191,202,159,170,124,131,131,131,131,131,124,112,58,56,50,56,33,79,43,50,7,77,77,77,77,198,198,262,187,179,68,78,78,275,78,78,77,78,77,143,118,114,106,344,344,339,338,331,330,381,356,356,304,488,479,518,453,422,356,575,535,558,498,664,646,606,463,858,838,1634,1594,4504,2862,5214,5210,29982,29983,29983,29984,29986,29987,29987,29986,29986,29987,29986,29987]} 1. d4 {[%emt 0:01:00]} d5 {[%emt 0:01:00]} 2. c4 {[%emt 0:00:00]} c6 {[%emt 0:00:30]} 3. cxd5 {[%emt 0:00:00]} cxd5 {[%emt 0:00:00]} 4. Bf4 {[%emt 0:00:30]} Nc6 {[%emt 0:01:00]} 5. e3 {[%emt 0:00:30]} Bf5 {[%emt 0:06:30]} 6. Qb3 {[%emt 0:02:30] D10: Slav Defence: 3 cxd5 (without early Nf3) and 3 Nc3.} Qd7 {[%emt 0:04:30]} 7. Nc3 {[%emt 0:00:30]} e6 {[%emt 0:05:30]} 8. Nf3 {[%emt 0:01:30] White has an edge.} a6 {[%emt 0:05:30]} 9. Be2 {[%emt 0:02:30]} Nf6 {[%emt 0:00:30]} 10. O-O {[%emt 0:00:30] And now Rfc1 would win.} Be7 {[%emt 0:03:30]} 11. Na4 {[%emt 0:00:30]} Na5 {[%emt 0:18:30]} 12. Qd1 {[%emt 0:00:30]} Qd8 {[%emt 0:01:30] Against Nb6} 13. Rc1 {[%emt 0:03:30]} Bd6 {[%emt 0:01:30] Prevents Bc7} 14. Ne5 {[%emt 0:01:30] [#]} O-O $146 {[%emt 0:04:30]} ({Predecessor:} 14... b5 15. Nc5 Bxc5 16. dxc5 Nd7 17. b3 Rc8 18. Nxd7 Qxd7 19. Qd2 Nb7 20. b4 O-O {1-0 Guo,W (1894)-Kuang,W (1405) CHN-chT (Women) 2021 (1.3)}) 15. a3 {[%emt 0:02:30]} Rc8 {[%emt 0:10:30]} 16. b4 $36 {[%emt 0:00:30][%mdl 2048] White has some pressure.} Nc6 {[%emt 0:00:30]} ({Black should play} 16... Nc4 $14) 17. Nxc6 $18 {[%emt 0:00:30]} bxc6 {[%emt 0:01:30]} 18. Bxa6 {[%emt 0:00:30]} Rc7 {[%emt 0:06:30]} 19. Bxd6 {[%emt 0:00:30]} Qxd6 {[%emt 0:00:30]} 20. Nc5 {[%emt 0:00:30]} Ra8 {[%emt 0:03:30]} (20... Rb8 $16 {was necessary.}) 21. a4 $1 {[%emt 0:00:30]} Ne4 {[%emt 0:06:18]} 22. Bd3 {[%emt 0:04:30]} Nxc5 {[%emt 0:04:44]} 23. bxc5 {[%emt 0:00:30]} (23. dxc5 $18 Qe7 24. Bxf5 exf5 25. a5) 23... Qe7 $16 {[%emt 0:01:18]} 24. Bxf5 {[%emt 0:00:30]} exf5 {[%emt 0:00:25]} 25. Rb1 {[%emt 0:00:30]} Rca7 {[%emt 0:00:19]} 26. Rb6 {[%emt 0:00:30]} Qc7 {[%emt 0:01:36]} 27. Qb3 {[%emt 0:00:30]} (27. Rb4 $16) 27... Rxa4 $14 {[%emt 0:02:27]} 28. Rb7 {[%emt 0:00:30]} Qc8 {[%emt 0:00:28][%cal Of5f4]} 29. Rb1 {[%emt 0:00:30]} g6 {[%emt 0:01:08]} (29... Ra1 $1 $14 30. h4 Rxb1+ 31. Qxb1 Ra1 32. Qxa1 Qxb7) 30. h3 {[%emt 0:00:30]} Kg7 {[%emt 0:01:22]} 31. Qb6 {[%emt 0:02:30] Threatens to win with Rc7.} R4a6 {[%emt 0:01:52]} (31... f4 $11 {keeps the balance.}) 32. Qc7 $1 $16 {[%emt 0:03:30] White is much more active.} Qxc7 {[%emt 0:00:42]} 33. Rxc7 {[%emt 0:00:00]} Ra1 {[%emt 0:00:45]} (33... R8a7 $16 34. Rxa7 Rxa7) 34. Rxa1 $1 $18 {[%emt 0:00:00]} Rxa1+ {[%emt 0:00:30][%mdl 4096] Endgame KR-KR} 35. Kh2 {[%emt 0:00:30]} Ra6 {[%emt 0:00:00]} 36. Rb7 {[%emt 0:01:30]} (36. Kg3 $18) 36... Ra8 {[%emt 0:01:00]} 37. Kg3 {[%emt 0:00:30]} h6 $2 {[%emt 0:00:13] [#]} (37... Re8 $16) 38. Rb6 $2 {[%emt 0:00:30]} (38. Rc7 $1 $18 {is the precise move to win.}) 38... Rc8 $16 {[%emt 0:00:30]} 39. Kf3 {[%emt 0:00:30]} Kf6 {[%emt 0:00:22]} 40. Rb7 {[%emt 0:00:30]} Ke6 {[%emt 0:00:00]} ({Black should try} 40... g5) 41. Ke2 {[%emt 0:00:30]} Ra8 {[%emt 0:01:54]} 42. h4 {[%emt 0:00:30][%cal Bh3h4,Bh4h5][%mdl 32] Hoping for Rc7.} Ra2+ $2 {[%emt 0:01:07]} (42... g5 $16) 43. Kf3 $18 {[%emt 0:00:30]} Ra8 {[%emt 0:00:00] [#]} 44. Rc7 {[%emt 0:00:30] Against Rc8} Ra6 {[%emt 0:00:27] [#]} 45. h5 $1 {[%emt 0:00:00][%mdl 512]} g5 {[%emt 0:00:21]} (45... Kf6 46. Kf4) 46. Rc8 {[%emt 0:00:00]} Kf6 {[%emt 0:00:36]} 47. g4 {[%emt 0:00:30]} fxg4+ $2 {[%emt 0:00:30]} (47... f4 48. exf4 Ra3+ 49. Ke2 Ra2+ 50. Kd3 Ra6) 48. Kxg4 {[%emt 0:00:30]} Kg7 {[%emt 0:00:30]} 49. Rc7 {[%emt 0:00:30]} Ra2 {[%emt 0:00:30]} 50. f3 {[%emt 0:00:30]} (50. Rxc6 Rxf2 51. Rd6 f6 52. Rxd5 Kf7 53. Rd7+ Ke8 $18) 50... Kf6 $2 {[%emt 0:00:30]} (50... Rg2+ {was worth a try.} 51. Kf5 Rg3) 51. e4 {[%emt 0:00:30]} Kg7 {[%emt 0:00:30]} 52. exd5 {[%emt 0:00:30]} cxd5 {[%emt 0:00:30]} 53. Rd7 {[%emt 0:00:30]} Kf6 {[%emt 0:00:30]} 54. Rxd5 {[%emt 0:00:30] Rd6+ would be deadly.} Ra1 {[%emt 0:00:30]} (54... Ke7 $142 55. Rd6 f6) 55. Rd6+ {[%emt 0:00:30]} Kg7 {[%emt 0:00:30]} 56. c6 {[%emt 0:00:30] Black must now prevent d5.} Rc1 {[%emt 0:00:30]} 57. d5 {[%emt 0:00:30][%cal Bd4d5,Bd5d6][%mdl 32] aiming for Kf5.} Rc5 {[%emt 0:00:30]} 58. Rd7 {[%emt 0:00:30] White wants to mate with c7.} Kf8 {[%emt 0:00:30]} 59. c7 {[%emt 0:00:30] White mates.} Rc4+ {[%emt 0:00:30]} 60. Kg3 {[%emt 0:00:30]} Kg7 {[%emt 0:00:30]} 61. d6 {[%emt 0:00:30]} Kf6 {[%emt 0:00:30]} 62. Rd8 {[%emt 0:00:30]} Ke6 {[%emt 0:00:30]} 63. c8=Q+ {[%emt 0:00:30]} Rxc8 {[%emt 0:00:30]} 64. Rxc8 {[%emt 0:00:30] Weighted Error Value: White=0.18 (very precise) /Black=0.48} 1-0

[Event "TUR-ch U13-18 Open 2023"]
[Site "Antalya"]
[Date "2023.01.22"]
[Round "1"]
[White "Ergin, Sahin"]
[Black "Akhan, Muhammed Taha"]
[Result "1-0"]
[ECO "A46"]
[WhiteElo "1878"]
[BlackElo "1213"]
[Annotator "NA RC COMBH"]
[PlyCount "64"]
[EventDate "2023.01.17"]
[EventType "swiss"]
[EventCountry "TUR"]
[SourceTitle "playchess.com"]
[Source "ChessBase"]
[SourceQuality "1"]
[TimeControl "5400+30"]

1. d4 {[%emt 0:01:00]} d6 {[%emt 0:01:00]} 2. Nf3 {[%emt 0:00:00]} Nf6 {[%emt 0:00:30]} 3. Bg5 {[%emt 0:00:00]} Nbd7 {[%emt 0:00:30]} 4. Nbd2 {[%emt 0:02:30]} e5 {[%emt 0:01:30]} 5. dxe5 {[%emt 0:02:30]} dxe5 {[%emt 0:00:30]} 6. e4 {[%emt 0:00:30]} Be7 {[%emt 0:01:30]} 7. Bc4 {[%emt 0:04:30]} h6 {[%emt 0:01:30]} 8. Bh4 {[%emt 0:00:30]} O-O {[%emt 0:00:30]} 9. O-O {[%emt 0:00:30]} c6 {[%emt 0:01:30]} 10. a4 {[%emt 0:01:30]} Qc7 {[%emt 0:02:30]} 11. c3 {[%emt 0:01:30]} Nc5 {[%emt 0:00:30]} 12. Qc2 {[%emt 0:03:30]} Bg4 {[%emt 0:04:30]} 13. Rfe1 {[%emt 0:02:30]} Rac8 {[%emt 0:04:30]} 14. h3 {[%emt 0:03:30]} Bh5 {[%emt 0:03:30]} 15. Bg3 {[%emt 0:11:30]} Ncd7 {[%emt 0:02:30]} 16. Nd4 {[%emt 0:04:30]} Rfd8 {[%emt 0:05:30]} 17. Bh2 {[%emt 0:05:30]} Bg6 {[%emt 0:03:30]} 18. Nf5 {[%emt 0:04:30]} Bf8 {[%emt 0:05:30]} 19. Nf3 {[%emt 0:09:30]} a6 {[%emt 0:04:30]} 20. N3h4 {[%emt 0:07:30]} (20. a5 $14 {deserves consideration.}) 20... Bh7 $2 {[%emt 0:03:30] [#]} (20... Bxf5 $11 21. Nxf5 b5) 21. Bxf7+ $1 {[%emt 0:00:30] Decoy} Kh8 {[%emt 0:01:30]} 22. Ng6+ {[%emt 0:02:30]} Bxg6 {[%emt 0:00:30]} 23. Bxg6 {[%emt 0:00:00]} c5 {[%emt 0:06:30]} (23... Bc5 $142 24. Nh4 Nf8) 24. Ne3 {[%emt 0:03:00]} c4 {[%emt 0:02:30]} 25. Bf5 {[%emt 0:03:30]} a5 {[%emt 0:07:30]} 26. Rad1 {[%emt 0:01:30]} Rb8 {[%emt 0:01:30]} 27. Rd2 $18 {[%emt 0:04:30]} Bc5 {[%emt 0:03:30]} 28. Nd5 {[%emt 0:00:30]} Bd6 {[%emt 0:03:30]} 29. Bxd7 {[%emt 0:00:30]} Rxd7 {[%emt 0:00:30]} 30. Rdd1 {[%emt 0:00:30]} Rbd8 {[%emt 0:00:30]} 31. Qd2 {[%emt 0:00:00]} Qb6 {[%emt 0:06:30]} 32. Bxe5 {[%emt 0:01:00]} Bxe5 {[%emt 0:03:08]} 1-0

[Event "TUR-ch U13-18 Open 2023"]
[Site "Antalya"]
[Date "2023.01.22"]
[Round "1"]
[White "Hasirci, Ozgur Deniz"]
[Black "Yildiz, Ege Serhan"]
[Result "1-0"]
[ECO "C62"]
[WhiteElo "1773"]
[BlackElo "1091"]
[Annotator "NA RC COMBH"]
[PlyCount "69"]
[EventDate "2023.01.17"]
[EventType "swiss"]
[EventCountry "TUR"]
[SourceTitle "playchess.com"]
[Source "ChessBase"]
[SourceQuality "1"]
[TimeControl "5400+30"]

1. e4 {[%emt 0:01:00]} e5 {[%emt 0:01:00]} 2. Nf3 {[%emt 0:00:30]} Nc6 {[%emt 0:00:30]} 3. Nc3 {[%emt 0:00:00]} Nf6 {[%emt 0:00:00]} 4. Bb5 {[%emt 0:00:00]} d6 {[%emt 0:04:00]} 5. d4 {[%emt 0:01:30]} Bd7 {[%emt 0:04:30]} 6. Bg5 {[%emt 0:18:30]} Be7 {[%emt 0:09:30]} 7. d5 {[%emt 0:13:30]} Nb8 {[%emt 0:04:30]} 8. Bc4 {[%emt 0:05:30]} h6 {[%emt 0:00:30]} 9. Be3 {[%emt 0:00:30]} Bg4 {[%emt 0:24:30]} 10. h3 {[%emt 0:02:30]} Bh5 {[%emt 0:10:30]} 11. g4 {[%emt 0:06:30]} Bg6 {[%emt 0:00:00]} 12. Bd3 {[%emt 0:01:30]} c6 {[%emt 0:08:00]} 13. Qd2 {[%emt 0:05:30]} cxd5 {[%emt 0:03:30]} 14. exd5 {[%emt 0:00:00]} Bxd3 {[%emt 0:03:30]} 15. Qxd3 {[%emt 0:00:00]} Nbd7 {[%emt 0:01:30]} 16. O-O-O {[%emt 0:06:30]} a6 {[%emt 0:12:14]} 17. Rdg1 {[%emt 0:04:30]} g5 {[%emt 0:08:01]} 18. h4 {[%emt 0:06:30]} Nh7 {[%emt 0:01:46]} 19. hxg5 {[%emt 0:01:30]} Bxg5 {[%emt 0:01:15]} 20. Ne4 {[%emt 0:00:30]} Bxe3+ {[%emt 0:00:30]} 21. Qxe3 {[%emt 0:00:30]} Qc7 {[%emt 0:00:38]} 22. Rxh6 {[%emt 0:00:00]} O-O-O {[%emt 0:00:31]} 23. Nxd6+ {[%emt 0:00:00]} Kb8 {[%emt 0:00:01]} 24. Nxf7 {[%emt 0:00:30]} Rc8 {[%emt 0:00:30]} 25. c3 {[%emt 0:00:30]} Rhf8 {[%emt 0:00:37]} 26. Rxh7 {[%emt 0:01:30]} Nf6 {[%emt 0:00:12]} 27. d6 {[%emt 0:01:30]} Qd7 {[%emt 0:00:39]} 28. N3xe5 {[%emt 0:00:30]} Qa4 {[%emt 0:01:01]} 29. d7 {[%emt 0:04:24]} Nxd7 {[%emt 0:00:10]} 30. Nd6 {[%emt 0:01:12]} Rcd8 {[%emt 0:00:46]} 31. Rxd7 {[%emt 0:00:45]} Rxd7 {[%emt 0:00:30]} 32. Nxd7+ {[%emt 0:00:30]} Qxd7 {[%emt 0:00:30]} 33. Nf5 {[%emt 0:00:06]} Re8 {[%emt 0:00:00]} 34. Qd4 {[%emt 0:00:00]} Qe6 {[%emt 0:00:07]} 35. Qd6+ {[%emt 0:00:00]} 1-0

[Event "TUR-ch U13-18 Open 2023"]
[Site "Antalya"]
[Date "2023.01.22"]
[Round "1"]
[White "Ozgun, Yigit Deniz"]
[Black "Yasar, Mehmet Ali"]
[Result "1-0"]
[ECO "A17"]
[WhiteElo "1769"]
[BlackElo "1303"]
[Annotator "NA RC COMBH"]
[PlyCount "41"]
[EventDate "2023.01.17"]
[EventType "swiss"]
[EventCountry "TUR"]
[SourceTitle "playchess.com"]
[Source "ChessBase"]
[SourceQuality "1"]
[TimeControl "5400+30"]

1. c4 e6 2. Nc3 Nf6 3. Nf3 Be7 4. e4 d5 5. cxd5 exd5 6. e5 Nfd7 7. d4 c6 8. Bd3 O-O 9. h4 Re8 10. Bxh7+ Kxh7 11. Ng5+ Kg8 12. Qh5 Nf8 13. Qxf7+ Kh8 14. h5 Bxg5 15. h6 gxh6 16. Bxg5 Qxg5 17. Qxe8 Qf5 18. Rxh6+ Kg7 19. Rf6 Qg5 20. Qxf8+ Kh7 21. Rf7+ 1-0

[Event "TUR-ch U13-18 Open 2023"]
[Site "Antalya"]
[Date "2023.01.22"]
[Round "1"]
[White "Zerey, Demhat"]
[Black "Yaman, Ali"]
[Result "1-0"]
[ECO "C42"]
[WhiteElo "1756"]
[BlackElo "1121"]
[Annotator "NA RC COMBH"]
[PlyCount "105"]
[EventDate "2023.01.17"]
[EventType "swiss"]
[EventCountry "TUR"]
[SourceTitle "playchess.com"]
[Source "ChessBase"]
[SourceQuality "1"]
[TimeControl "5400+30"]

1. e4 {[%emt 0:01:00]} e5 {[%emt 0:01:00]} 2. Nf3 {[%emt 0:00:30]} Nf6 {[%emt 0:00:30]} 3. Bc4 {[%emt 0:00:30]} Nxe4 {[%emt 0:00:30]} 4. Nc3 {[%emt 0:00:30]} Nxc3 {[%emt 0:05:30]} 5. dxc3 {[%emt 0:00:30]} Bc5 {[%emt 0:01:30]} 6. Bxf7+ {[%emt 0:03:30]} Kxf7 {[%emt 0:00:30]} 7. Nxe5+ {[%emt 0:08:30]} Kf8 {[%emt 0:03:30]} 8. Qd5 {[%emt 0:00:30]} Qf6 {[%emt 0:05:30]} 9. Qxc5+ {[%emt 0:01:30]} d6 {[%emt 0:00:30]} 10. Qxc7 {[%emt 0:00:30]} Qxe5+ {[%emt 0:00:30]} 11. Be3 {[%emt 0:00:30]} Nc6 {[%emt 0:00:30]} 12. O-O-O {[%emt 0:00:30]} Qe7 {[%emt 0:01:30]} 13. Qxd6 {[%emt 0:00:30]} Qxd6 {[%emt 0:03:30]} 14. Rxd6 {[%emt 0:00:30]} Kf7 {[%emt 0:06:30]} 15. Rhd1 {[%emt 0:04:30]} Be6 {[%emt 0:05:30]} 16. c4 {[%emt 0:03:30]} Rac8 {[%emt 0:11:30]} 17. b3 {[%emt 0:05:30]} Rhe8 {[%emt 0:03:30]} 18. h3 {[%emt 0:04:30]} g6 {[%emt 0:09:30]} 19. a4 {[%emt 0:08:30]} Rc7 {[%emt 0:02:30]} 20. Bg5 {[%emt 0:04:30]} Bc8 {[%emt 0:02:30]} 21. R1d2 {[%emt 0:03:30]} Re1+ {[%emt 0:03:30]} 22. Kb2 {[%emt 0:00:30]} Re6 {[%emt 0:00:30]} 23. R6d5 {[%emt 0:00:30]} Re5 {[%emt 0:03:30]} 24. Bf4 {[%emt 0:02:30]} Rxd5 {[%emt 0:01:30]} 25. cxd5 {[%emt 0:00:30]} Rd7 {[%emt 0:00:00]} 26. dxc6 {[%emt 0:00:30]} Rxd2 {[%emt 0:00:00]} 27. Bxd2 {[%emt 0:00:30]} bxc6 {[%emt 0:00:30]} 28. Be3 {[%emt 0:00:00]} a6 {[%emt 0:00:00]} 29. g4 {[%emt 0:02:00]} Kf6 {[%emt 0:01:00]} 30. Kc3 {[%emt 0:00:30]} Ke5 {[%emt 0:01:30]} 31. Kd3 {[%emt 0:01:30]} Be6 {[%emt 0:01:30]} 32. c4 {[%emt 0:03:30]} Kd6 {[%emt 0:00:30]} 33. Bf4+ {[%emt 0:00:30]} Kc5 {[%emt 0:02:30]} 34. Kc3 {[%emt 0:00:00]} Kb6 {[%emt 0:00:30]} 35. Kd4 {[%emt 0:00:00]} h5 {[%emt 0:02:30]} 36. f3 {[%emt 0:00:30]} a5 {[%emt 0:01:30]} 37. Ke5 {[%emt 0:00:30]} Bg8 {[%emt 0:00:30]} 38. Be3+ {[%emt 0:00:30]} Kc7 {[%emt 0:00:30]} 39. Kf6 {[%emt 0:00:30]} hxg4 {[%emt 0:00:30]} 40. fxg4 {[%emt 0:00:00]} g5 {[%emt 0:00:30]} 41. Bxg5 {[%emt 0:00:00]} Bh7 {[%emt 0:00:30]} 42. Bd2 {[%emt 0:00:00]} Kb6 {[%emt 0:00:30]} 43. b4 {[%emt 0:00:00]} axb4 {[%emt 0:00:30]} 44. Bxb4 {[%emt 0:00:30]} c5 {[%emt 0:00:30]} 45. Bc3 {[%emt 0:01:30]} Bd3 {[%emt 0:00:30]} 46. h4 {[%emt 0:00:30]} Bxc4 {[%emt 0:00:00]} 47. g5 {[%emt 0:00:00]} Kc6 {[%emt 0:00:00]} 48. g6 {[%emt 0:00:00]} Kd6 {[%emt 0:00:30]} 49. h5 {[%emt 0:00:00]} Be6 {[%emt 0:00:30]} 50. h6 {[%emt 0:00:00]} Bg8 {[%emt 0:00:30]} 51. h7 {[%emt 0:00:00]} Bxh7 {[%emt 0:00:30]} 52. gxh7 {[%emt 0:00:00]} c4 {[%emt 0:00:30]} 53. h8=Q {[%emt 0:00:30]} 1-0

[Event "TUR-ch U13-18 Open 2023"]
[Site "Antalya"]
[Date "2023.01.22"]
[Round "1"]
[White "Demirci, Samet Erhan"]
[Black "Yildirim, Ibrahim Halil"]
[Result "0-1"]
[ECO "C54"]
[WhiteElo "1479"]
[BlackElo "2124"]
[Annotator "TA"]
[PlyCount "69"]
[EventDate "2023.01.17"]
[EventType "swiss"]
[EventCountry "TUR"]
[SourceTitle "playchess.com"]
[Source "ChessBase"]
[SourceQuality "1"]
[TimeControl "5400+30"]

{[%evp 11,69,19,21,11,23,14,17,13,20,13,11,12,18,16,42,10,23,0,11,0,9,13,17,3,24,4,26,29,106,47,101,-40,-48,-70,-78,-67,-8,-20,-18,-26,-32,-150,-137,-142,-125,-141,-37,-45,-42,-236,-211,-384,-383,-367,-332,-335,-376,-391,-363,-419]} 1. e4 e5 2. Nf3 Nc6 3. Bc4 Bc5 4. c3 Nf6 5. d3 a6 6. O-O Ba7 7. h3 {C54: Giuoco Piano: 4 c3 Nf6, main lines with 5 d4 and 5 d3.} d6 8. a4 O-O 9. Re1 {The position is equal.} h6 10. Nbd2 Nh5 11. Nf1 Qf6 12. Be3 {12.Ne3 is not played anymore.} Nf4 13. Bxa7 Rxa7 14. Ng3 {[#]} (14. Kh2 {is more complex.} Bd7 15. Ne3 Raa8 16. a5) 14... Ne7 $146 ({Predecessor:} 14... g6 15. Nh2 h5 16. Qf3 Kg7 17. Ne2 Nxe2+ 18. Qxe2 Na5 19. Bd5 c6 20. Ba2 c5 {1-0 Kacharava,N (2437)-Toure,V (2132) EU-ch Online U2300 Final 2020 (3)}) 15. Re3 Neg6 16. d4 h5 17. Bf1 Be6 18. Kh2 {[%cal Og3f5]} Ne7 19. Ne2 g5 (19... Nxe2 $11 20. Qxe2 Raa8) 20. d5 ({White should try} 20. Nxg5 $16 Qxg5 21. Rg3) 20... Bd7 {[#]} (20... Bg4 $14) 21. g3 (21. Nxg5 $1 $16 Qxg5 22. Rg3) 21... Nfg6 $15 {aiming for ...g4.} 22. Qe1 g4 23. Nd2 Qg5 ({Black should play} 23... Qg7 $15) 24. h4 $11 Qh6 25. Bg2 Raa8 26. Ng1 (26. c4 $15) 26... f5 $17 27. exf5 Nxf5 28. Rd3 Nfe7 {Black is more active.} (28... Nfxh4 $17 {Strongly threatening ...Nf5.} 29. gxh4 Qf4+ 30. Kh1 Qxf2) 29. Ne4 $15 Bf5 {[%cal Og6f4]} 30. Qe3 $2 {Inhibits Nf4. This costs White the game.} (30. b4 $15) 30... Qxe3 $19 31. fxe3 (31. Rxe3 Bxe4 {[%mdl 64] Discovered Attack} 32. Rxe4) 31... Bxe4 32. Bxe4 Rf2+ 33. Kh1 Rxb2 {[#] Hoping for ...Rf8.} 34. Rdd1 Rf8 {Threatens to win with ...Rff2.} 35. Rf1 {Weighted Error Value: White=0.35/Black=0.20 (precise)} 0-1

[Event "TUR-ch U13-18 Open 2023"]
[Site "Antalya"]
[Date "2023.01.22"]
[Round "1"]
[White "Opcun, Ali Atilla"]
[Black "Avsar, Gediz"]
[Result "0-1"]
[ECO "B34"]
[WhiteElo "1387"]
[BlackElo "1748"]
[Annotator "NA RC COMBH"]
[PlyCount "86"]
[EventDate "2023.01.17"]
[EventType "swiss"]
[EventCountry "TUR"]
[SourceTitle "playchess.com"]
[Source "ChessBase"]
[SourceQuality "1"]
[TimeControl "5400+30"]

1. e4 {[%emt 0:01:00]} c5 {[%emt 0:03:00]} 2. Nf3 {[%emt 0:00:30]} Nc6 {[%emt 0:00:30]} 3. d4 {[%emt 0:00:00]} cxd4 {[%emt 0:00:30]} 4. Nxd4 {[%emt 0:00:00]} g6 {[%emt 0:00:00]} 5. Nc3 {[%emt 0:00:30]} Bg7 {[%emt 0:00:00]} 6. Be3 {[%emt 0:00:30]} Nf6 {[%emt 0:00:00]} 7. f3 {[%emt 0:03:30]} O-O {[%emt 0:03:00]} 8. Qd2 {[%emt 0:00:30]} d5 {[%emt 0:01:30]} 9. O-O-O {[%emt 0:02:30]} dxe4 {[%emt 0:00:30]} 10. Nxc6 {[%emt 0:25:30]} Qxd2+ {[%emt 0:00:30]} 11. Rxd2 {[%emt 0:00:30]} bxc6 {[%emt 0:00:30]} 12. Nxe4 {[%emt 0:00:00]} Nd5 {[%emt 0:01:30]} 13. Bg5 {[%emt 0:00:00]} f6 {[%emt 0:00:30]} 14. Bc4 {[%emt 0:04:30]} Kh8 {[%emt 0:04:30]} 15. Bxd5 {[%emt 0:06:30]} cxd5 {[%emt 0:00:30]} 16. Rxd5 {[%emt 0:00:00]} Bb7 {[%emt 0:02:30]} 17. Rd7 {[%emt 0:07:00]} Bxe4 {[%emt 0:00:30]} 18. Be3 {[%emt 0:07:30]} Bc6 {[%emt 0:03:30]} 19. Rxe7 {[%emt 0:03:30]} Rfe8 {[%emt 0:10:30]} 20. Rxe8+ {[%emt 0:00:30]} Rxe8 {[%emt 0:00:30]} 21. Bxa7 {[%emt 0:01:30]} Re2 {[%emt 0:01:30]} 22. Rg1 {[%emt 0:03:30]} Bh6+ {[%emt 0:02:30]} 23. Kb1 {[%emt 0:00:30]} Bd7 {[%emt 0:02:30]} 24. c3 {[%emt 0:05:30]} Bf5+ {[%emt 0:04:30]} 25. Ka1 {[%emt 0:00:00]} Rc2 {[%emt 0:01:30]} 26. g4 {[%emt 0:02:00]} Bd3 {[%emt 0:01:30]} 27. Rd1 {[%emt 0:05:30]} Be2 {[%emt 0:00:30]} 28. Rd8+ {[%emt 0:00:30]} Kg7 {[%emt 0:00:00]} 29. a4 {[%emt 0:01:30]} Bc4 {[%emt 0:03:00]} 30. Rd1 {[%emt 0:03:01]} Bb3 {[%emt 0:01:30]} 31. a5 {[%emt 0:01:32]} Rxh2 {[%emt 0:02:30]} 32. Re1 {[%emt 0:02:06]} Bd2 {[%emt 0:01:30]} 33. Rf1 {[%emt 0:00:30]} h5 {[%emt 0:02:30]} 34. Bd4 {[%emt 0:06:24]} Bc4 {[%emt 0:00:30]} 35. Rd1 {[%emt 0:02:05]} h4 {[%emt 0:01:30]} 36. Rb1 {[%emt 0:02:05]} Re2 {[%emt 0:03:30]} 37. b3 {[%emt 0:00:56]} Bd3 {[%emt 0:00:30]} 38. Rh1 {[%emt 0:00:30]} g5 {[%emt 0:00:30]} 39. c4 {[%emt 0:00:30]} Bxa5 {[%emt 0:00:30]} 40. c5 {[%emt 0:00:30]} Re1+ {[%emt 0:00:30]} 41. Rxe1 {[%emt 0:00:30]} Bxe1 {[%emt 0:00:30]} 42. c6 {[%emt 0:00:00]} Bg3 {[%emt 0:01:30]} 43. b4 {[%emt 0:00:00]} Bb5 {[%emt 0:00:00]} 0-1

[Event "TUR-ch U13-18 Open 2023"]
[Site "Antalya"]
[Date "2023.01.22"]
[Round "1"]
[White "Cetin, Eralp"]
[Black "Kazik, Oguz Kagan"]
[Result "0-1"]
[ECO "E01"]
[WhiteElo "1378"]
[BlackElo "2053"]
[Annotator "TA"]
[PlyCount "74"]
[EventDate "2023.01.17"]
[EventType "swiss"]
[EventCountry "TUR"]
[SourceTitle "playchess.com"]
[Source "ChessBase"]
[SourceQuality "1"]
[TimeControl "5400+30"]

{[%evp 9,74,4,11,7,7,12,10,0,-14,-39,0,0,0,0,0,0,24,22,33,0,0,0,0,-47,-14,-12,17,-29,0,-82,-70,-80,-91,-94,-87,-91,-91,-107,-99,-101,-103,-128,-117,-133,-125,-123,-122,-154,-156,-198,-176,-334,-90,-950,-895,-1071,-1067,-1027,-918,-1799,-1704,-3417,922,-2991,624,-3858,-699]} 1. d4 Nf6 2. c4 e6 3. g3 d5 4. Bg2 Bb4+ 5. Bd2 a5 6. a3 {E01: Catalan: Early deviations.} Be7 7. Nf3 O-O 8. O-O {The position is equal.} dxc4 9. Nc3 Nc6 10. Bg5 {[#]} Nd5 $146 ({Predecessor:} 10... Rb8 11. e4 b5 12. d5 Na7 13. Be3 Rb7 14. Bxa7 Rxa7 15. Nxb5 Rb7 16. Nfd4 Bd7 17. a4 e5 18. Nc6 Bxc6 19. dxc6 Rb6 20. Qc2 Rxc6 21. Qc3 Bb4 {½-½ Minko,V (2226)-Zumsande,M (2423) Pardubice Czech op-A 26th 2015 (7)}) 11. Bxe7 Qxe7 12. e3 Rd8 13. Nd2 {[%mdl 1024] White has compensation.} b6 14. Qa4 Qd7 15. Rfe1 Ba6 {[%cal Ob6b5]} 16. Rac1 (16. Qc2 $11 {was preferrable.}) 16... Rab8 17. Qc2 b5 (17... Nxc3 $5 18. Qxc3 Ne5 $11 {[%mdl 64] Pin}) 18. Nce4 (18. Nde4 {is more appropriate.}) 18... Qe7 19. Nc5 {Against a4} (19. b3 $1 $11) 19... Bc8 $1 $17 {White is now going downhill.} 20. Nb1 {[#]} a4 $1 21. Nc3 Qf8 22. Rcd1 Na5 23. e4 Nxc3 24. Qxc3 Nb3 25. Nxb3 axb3 26. h4 Ba6 27. Qa5 Qd6 28. h5 {[%cal Oh5h6]} h6 29. e5 Qb6 30. Qd2 (30. Qxb6 Rxb6 31. Rd2) 30... b4 $2 (30... c5 $19 {[%cal Rd8d4] has better winning chances.} 31. Re4 Bb7) 31. Re4 $2 {[%mdl 8192] [#]} (31. axb4 $17 Qxb4 32. Qxb4 Rxb4 33. f4) 31... c3 $1 $19 {[%mdl 576] Deflection} 32. bxc3 (32. Qe1 c2) 32... bxa3 33. Rg4 Kf8 {aiming for ...b2.} 34. Qf4 Be2 {[%csl LRd1,LRg4]} 35. Qf6 Ke8 $4 {[%mdl 8192] [#]} (35... gxf6 $19 36. Rg6 Bxd1 37. Rxh6 a2 38. Rxf6 b2) 36. Be4 $4 {[%mdl 8192]} b2 $4 {[%mdl 8192]} (36... gxf6 $19 37. Rg8+ Ke7 38. exf6+ Kxf6 39. Rxd8 Bxd1) 37. Rd2 $4 {[%mdl 8192]} (37. Rxg7 $18 Kd7 38. Rxf7+ Kc8 39. Rf8) 37... Kd7 {Weighted Error Value: White=1.16/Black=0.41} (37... b1=Q+ $142 38. Bxb1 Qxb1+ 39. Kh2 gxf6) 0-1